bitfinex/quotes_SOLUSD_20260203
["timestamp","ask_amount","ask_price","bid_price","bid_amount"]
[1770147727087,0.2,99.67,99.6,10.10071711]
[1770147727088,4.14445035,99.649,99.6,10.10071711]
[1770147727616,4.14445035,99.662,99.62,10.10071711]
[1770147728172,4.14445035,99.639,99.561,4.18786644]
[1770147728385,4.14445035,99.629,99.581,4.18786644]
[1770147728594,4.14445035,99.609,99.566,4.18786644]
[1770147728789,4.14445035,99.609,99.56,10.10071711]
[1770147728992,4.14445035,99.609,99.561,4.18786644]
[1770147729895,4.14445035,99.609,99.57,10.10071711]
[1770147730098,4.14445035,99.609,99.56,10.10071711]
[1770147730398,4.14445035,99.609,99.57,10.10071711]
[1770147731294,4.14445035,99.589,99.541,4.18786644]
[1770147731682,27.9,99.633,99.53,10.10071711]
[1770147731887,6.31630384,99.666,99.485,27.9]
[1770147731888,10.10071711,99.59,99.541,4.18786644]
[1770147732192,4.14445035,99.59,99.541,4.18786644]
[1770147732500,4.14445035,99.603,99.551,4.18786644]
[1770147732703,10.10071711,99.59,99.541,4.18786644]
[1770147733192,4.14445035,99.599,99.55,10.10071711]
[1770147733396,4.14445035,99.612,99.56,10.10071711]
[1770147733593,4.14445035,99.612,99.57,10.10071711]
[1770147733794,4.14445035,99.609,99.56,14.28858355]
[1770147734477,4.14445035,99.609,99.57,10.10071711]
[1770147734683,11.67716572,99.666,99.54,10.0461929]
[1770147734684,10.10071711,99.59,99.547,4.18786644]
[1770147734892,4.14445035,99.599,99.55,10.10071711]
[1770147735290,4.14445035,99.59,99.55,10.10071711]
[1770147735489,4.14445035,99.603,99.56,10.10071711]
[1770147735694,4.14445035,99.589,99.54,10.10071711]
[1770147736001,4.14445035,99.579,99.53,10.10071711]
[1770147736384,4.14445035,99.579,99.531,4.18786644]
[1770147738498,4.14445035,99.569,99.516,4.18786644]
[1770147739001,4.14445035,99.559,99.516,4.18786644]
[1770147739198,4.14445035,99.599,99.523,4.18786644]
[1770147739379,4.14445035,99.579,99.52,10.10071711]
[1770147739581,4.14445035,99.569,99.52,14.28858355]
[1770147740604,4.14445035,99.569,99.52,4.18786644]
[1770147740790,4.14445035,99.569,99.52,14.28858355]
[1770147741588,4.14445035,99.569,99.52,4.18786644]
[1770147741784,4.14445035,99.569,99.52,10.10071711]
[1770147741991,4.14445035,99.569,99.521,4.29262663]
[1770147745305,10.10071711,99.56,99.521,4.29262663]
[1770147745486,4.14445035,99.569,99.521,4.29262663]
[1770147746801,27.92,99.608,99.5,10.20071711]
[1770147746802,4.24363442,99.549,99.5,10.20071711]
[1770147746993,4.24363442,99.549,99.51,10.10071711]
[1770147747397,4.24363442,99.549,99.511,4.29262663]
[1770147747809,4.24363442,99.579,99.531,4.29262663]
[1770147748002,4.24363442,99.589,99.541,4.29262663]
[1770147748704,4.24363442,99.589,99.55,10.10071711]
[1770147748901,4.24363442,99.579,99.526,4.29262663]
[1770147749103,4.24363442,99.579,99.531,4.29262663]
[1770147749312,10.10071711,99.59,99.541,4.29262663]
[1770147749612,4.24363442,99.589,99.541,4.29262663]
[1770147751218,4.24363442,99.611,99.57,10.10071711]
[1770147751520,4.24363442,99.609,99.56,10.10071711]
[1770147751722,6.30624466,99.635,99.533,4.29262663]
[1770147751723,4.24363442,99.579,99.533,4.29262663]
[1770147751909,4.24363442,99.579,99.54,14.39334374]
[1770147752097,4.24363442,99.589,99.541,4.29262663]
[1770147752796,10.10071711,99.58,99.541,4.29262663]
[1770147753103,4.24363442,99.589,99.541,4.29262663]
[1770147753504,4.24363442,99.589,99.55,10.10071711]
[1770147753709,4.24363442,99.589,99.541,4.29262663]
[1770147757698,4.24363442,99.569,99.531,4.29262663]
[1770147757902,4.24363442,99.569,99.54,10.10071711]
[1770147758103,4.24363442,99.569,99.531,4.29262663]
[1770147759022,4.24363442,99.569,99.52,4.29262663]
[1770147759216,4.24363442,99.559,99.521,0.14216157]
[1770147760303,4.24363442,99.559,99.52,10.10071711]
[1770147761003,4.24363442,99.559,99.531,0.14578028]
[1770147763520,4.24363442,99.575,99.532,4.29262663]
[1770147763923,4.24363442,99.559,99.531,0.14578028]
[1770147764807,4.24363442,99.539,99.481,4.29262663]
[1770147765006,10.10071711,99.52,99.481,4.29262663]
[1770147765305,10.10071711,99.6,99.45,25.23800898]
[1770147765306,10.10071711,99.5,99.45,10.20071711]
[1770147765505,10.10071711,99.5,99.451,4.29262663]
[1770147765723,4.24363442,99.583,99.481,4.29262663]
[1770147765928,4.24363442,99.529,99.481,4.29262663]
[1770147767118,4.24363442,99.519,99.481,4.29262663]
[1770147767322,10.10071711,99.51,99.471,4.29262663]
[1770147767529,4.24363442,99.509,99.471,4.29262663]
[1770147767830,10.10071711,99.5,99.451,4.29262663]
[1770147768414,4.24363442,99.501,99.451,4.29262663]
[1770147768623,4.24363442,99.512,99.471,4.29262663]
[1770147768951,4.24363442,99.499,99.46,4.29262663]
[1770147769118,4.24363442,99.479,99.45,0.1]
[1770147769319,4.24363442,99.479,99.397,25.15147159]
[1770147769320,4.24363442,99.469,99.421,4.29262663]
[1770147769524,10.10071711,99.46,99.421,4.29262663]
[1770147769723,10.10071711,99.45,99.41,4.29262663]
[1770147769946,4.24363442,99.459,99.376,5.36086188]
[1770147769947,4.24363442,99.459,99.421,4.29262663]
[1770147770829,4.48146981,99.473,99.431,4.33776491]
[1770147771034,4.48146981,99.484,99.45,10.10071711]
[1770147771533,4.48146981,99.509,99.46,10.10071711]
[1770147771943,4.48146981,99.509,99.47,10.10071711]
[1770147772458,4.48146981,99.509,99.47,10.09986489]
[1770147773248,4.48146981,99.509,99.462,4.33776491]
[1770147773828,4.48146981,99.509,99.46,10.09986489]
[1770147774023,4.48146981,99.509,99.47,10.09986489]
[1770147774741,4.48146981,99.509,99.46,10.09986489]
[1770147774934,4.39118602,99.499,99.46,10.09986489]
[1770147775127,4.39118602,99.489,99.445,4.12955888]
[1770147775540,4.39118602,99.489,99.44,10.09986489]
[1770147775932,4.39118602,99.489,99.45,10.09986489]
[1770147776135,4.39118602,99.489,99.46,10.09986489]
[1770147776948,4.39118602,99.489,99.45,10.09986489]
[1770147777540,4.39118602,99.489,99.444,4.12955888]
[1770147777850,4.39118602,99.489,99.45,10.09986489]
[1770147778725,4.39118602,99.489,99.44,10.09986489]
[1770147778931,4.39118602,99.499,99.46,10.09986489]
[1770147779137,4.39118602,99.499,99.47,10.09986489]
[1770147779834,4.39118602,99.499,99.461,4.12955888]
[1770147780839,4.39118602,99.547,99.491,4.12955888]
[1770147781045,4.39118602,99.547,99.51,10.09986489]
[1770147781442,4.39118602,99.539,99.49,10.09986489]
[1770147781643,4.39118602,99.509,99.46,10.09986489]
[1770147781844,4.39118602,99.509,99.461,4.12955888]
[1770147782343,4.39118602,99.499,99.461,4.12955888]
[1770147782654,5.36086188,99.556,99.45,4.12955888]
[1770147782655,4.39118602,99.489,99.45,4.12955888]
[1770147782836,4.39118602,99.489,99.451,4.12955888]
[1770147783753,4.39118602,99.512,99.48,10.09986489]
[1770147784249,4.39118602,99.512,99.471,4.12955888]
[1770147784840,4.39118602,99.512,99.426,5.36086188]
[1770147784841,4.39118602,99.509,99.46,10.09986489]
[1770147785044,4.39118602,99.509,99.47,10.09986489]
[1770147785252,4.39118602,99.509,99.48,10.09986489]
[1770147786044,4.39118602,99.529,99.481,4.12955888]
[1770147786246,4.39118602,99.529,99.5,10.09986489]
[1770147786554,4.39118602,99.569,99.521,4.12955888]
[1770147786861,4.39118602,99.569,99.54,10.09986489]
[1770147787040,4.39118602,99.549,99.474,4.12955888]
[1770147787240,4.39118602,99.539,99.481,4.12955888]
[1770147787851,4.39118602,99.529,99.481,4.12955888]
[1770147788067,4.39118602,99.509,99.465,4.12955888]
[1770147789032,10.09986489,99.49,99.436,4.12955888]
[1770147789239,10.09986489,99.49,99.42,0.1]
[1770147789240,4.39118602,99.489,99.441,4.12955888]
[1770147789437,4.39118602,99.479,99.441,4.12955888]
[1770147789941,4.39118602,99.469,99.431,4.12955888]
[1770147790140,4.39118602,99.469,99.42,10.19986489]
[1770147790337,10.09986489,99.52,99.42,10.19986489]
[1770147790338,4.39118602,99.459,99.42,0.1]
[1770147790542,4.39118602,99.472,99.431,4.12955888]
[1770147790743,4.39118602,99.484,99.44,14.22942377]
[1770147790945,4.39118602,99.484,99.45,10.09986489]
[1770147791157,4.39118602,99.499,99.451,4.12955888]
[1770147791341,4.39118602,99.499,99.46,10.09986489]
[1770147791658,4.39118602,99.499,99.47,10.09986489]
[1770147792159,4.39118602,99.489,99.44,10.09986489]
[1770147792356,4.39118602,99.489,99.441,4.12955888]
[1770147792540,4.39118602,99.489,99.46,10.09986489]
[1770147792740,4.39118602,99.509,99.471,4.12955888]
[1770147792957,4.39118602,99.509,99.47,10.09986489]
[1770147793763,4.39118602,99.522,99.49,10.09986489]
[1770147793950,4.39118602,99.522,99.44,10.09986489]
[1770147793951,4.39118602,99.539,99.5,10.09986489]
[1770147795056,4.39118602,99.539,99.51,10.09986489]
[1770147795258,4.39118602,99.559,99.502,4.12955888]
[1770147795459,4.39118602,99.559,99.52,10.09986489]
[1770147795850,4.39118602,99.559,99.51,10.09986489]
[1770147796245,4.39118602,99.589,99.55,10.09986489]
[1770147796643,4.39118602,99.589,99.54,14.22942377]
[1770147796843,4.39118602,99.589,99.54,10.09986489]
[1770147797555,4.39118602,99.569,99.52,10.09986489]
[1770147798159,4.39118602,99.559,99.513,4.12955888]
[1770147798357,4.39118602,99.549,99.498,4.12955888]
[1770147798769,4.39118602,99.549,99.5,10.09986489]
[1770147799444,4.39118602,99.539,99.5,10.09986489]
[1770147799861,4.39118602,99.539,99.491,4.12955888]
[1770147800774,4.13019598,99.529,99.48,10.09986489]
[1770147800967,4.13019598,99.529,99.481,4.10201801]
[1770147801150,27.94,99.578,99.444,27.94]
[1770147801151,4.13019598,99.519,99.47,14.2018829]
[1770147801351,4.13019598,99.519,99.471,4.10201801]
[1770147801590,4.13019598,99.519,99.481,4.10201801]
[1770147801776,4.13019598,99.531,99.491,4.10201801]
[1770147802988,4.13019598,99.529,99.44,4.10201801]
[1770147803146,27.94,99.577,99.441,4.10201801]
[1770147803147,10.09986489,99.49,99.441,4.10201801]
[1770147803555,4.13019598,99.499,99.441,4.10201801]
[1770147803874,4.13019598,99.489,99.441,4.10201801]
[1770147804094,10.09986489,99.47,99.429,4.10201801]
[1770147804283,4.13019598,99.469,99.431,4.10201801]
[1770147804469,4.13019598,99.481,99.441,4.10201801]
[1770147805009,4.13019598,99.459,99.393,27.94]
[1770147805167,4.13019598,99.439,99.393,4.10201801]
[1770147805367,10.09986489,99.43,99.393,4.10201801]
[1770147805591,10.09986489,99.42,99.38,4.10201801]
[1770147805790,4.13019598,99.429,99.38,4.10201801]
[1770147806089,27.94,99.487,99.361,4.10201801]
[1770147806090,4.13019598,99.419,99.361,4.10201801]
[1770147806272,4.13019598,99.419,99.371,4.10201801]
[1770147807282,6.61075187,99.471,99.34,0.1]
[1770147807283,4.13019598,99.439,99.39,10.09986489]
[1770147807583,4.13019598,99.429,99.381,4.10201801]
[1770147807790,10.09986489,99.4,99.368,4.10201801]
[1770147807988,10.09986489,99.41,99.368,4.10201801]
[1770147808166,4.13019598,99.409,99.355,4.10201801]
[1770147808362,4.13019598,99.409,99.36,10.09986489]
[1770147808584,4.13019598,99.409,99.361,4.10201801]
[1770147808885,4.13019598,99.389,99.35,0.1]
[1770147809983,4.13019598,99.388,99.35,0.1]
[1770147810591,10.09986489,99.38,99.35,0.1]
[1770147810894,5.36086188,99.436,99.35,0.1]
[1770147810895,4.13019598,99.392,99.351,4.10201801]
[1770147811490,4.13019598,99.392,99.36,10.09986489]
[1770147811886,4.13019598,99.392,99.351,4.10201801]
[1770147812670,4.13019598,99.427,99.351,4.10201801]
[1770147812892,4.13019598,99.399,99.351,4.10201801]
[1770147813071,4.13019598,99.389,99.351,4.10201801]
[1770147813267,4.13019598,99.4,99.351,4.10201801]
[1770147813467,6.31309443,99.428,99.38,10.09986489]
[1770147813468,4.13019598,99.427,99.38,10.09986489]
[1770147813792,4.13019598,99.427,99.39,10.09986489]
[1770147813987,4.13019598,99.427,99.381,4.10201801]
[1770147814496,4.13019598,99.427,99.38,10.09986489]
[1770147814793,4.13019598,99.427,99.381,4.10201801]
[1770147815684,6.31309443,99.428,99.411,4.10201801]
[1770147815884,4.13019598,99.456,99.42,10.09986489]
[1770147816087,4.13019598,99.456,99.411,4.10201801]
[1770147817291,4.13019598,99.456,99.42,10.09986489]
[1770147817596,4.13019598,99.456,99.411,4.10201801]
[1770147819498,4.13019598,99.456,99.42,10.09986489]
[1770147820397,4.13019598,99.439,99.391,4.10201801]
[1770147820576,4.13019598,99.429,99.38,14.2018829]
[1770147820894,4.13019598,99.429,99.381,4.10201801]
[1770147822293,4.13019598,99.419,99.381,4.10201801]
[1770147822880,4.13019598,99.431,99.381,4.10201801]
[1770147823079,4.13019598,99.431,99.39,10.09986489]
[1770147823279,4.13019598,99.429,99.381,4.10201801]
[1770147823498,4.13019598,99.419,99.37,14.2018829]
[1770147823802,4.13019598,99.419,99.371,4.10201801]
[1770147824484,4.13019598,99.419,99.36,10.09986489]
[1770147824798,4.13019598,99.389,99.345,4.10201801]
[1770147824979,4.13019598,99.36,99.327,10.21573192]
[1770147825198,4.13019598,99.349,99.327,10.21573192]
[1770147825375,10.09986489,99.34,99.291,4.10201801]
[1770147825590,4.13019598,99.349,99.301,4.10201801]
[1770147825793,10.09986489,99.35,99.301,4.10201801]
[1770147826601,10.09986489,99.33,99.291,4.10201801]
[1770147826816,10.09986489,99.34,99.291,4.10201801]
[1770147827104,4.08889402,99.348,99.291,4.10201801]
[1770147827306,4.08889402,99.339,99.291,4.10201801]
[1770147827593,10.09986489,99.33,99.291,4.10201801]
[1770147827800,4.08889402,99.339,99.291,4.10201801]
[1770147828001,4.08889402,99.329,99.281,4.10201801]
[1770147828591,10.09986489,99.32,99.281,4.10201801]
[1770147828796,4.08889402,99.329,99.281,4.10201801]
[1770147828797,10.09986489,99.31,99.281,4.10201801]
[1770147829179,10.09986489,99.32,99.281,4.10201801]
[1770147829601,4.08889402,99.329,99.281,4.10201801]
[1770147829807,10.09986489,99.32,99.281,4.10201801]
[1770147830190,4.08889402,99.329,99.281,4.10201801]
[1770147830702,4.08889402,99.329,99.29,10.09986489]
[1770147830899,4.08889402,99.329,99.281,4.09919439]
[1770147831105,10.09986489,99.34,99.291,4.09919439]
[1770147831286,4.08889402,99.339,99.3,10.09986489]
[1770147831488,4.08889402,99.362,99.32,10.09986489]
[1770147831692,111.0735457,99.882,99.321,4.09919439]
[1770147831693,4.08889402,99.359,99.321,4.09919439]
[1770147831992,4.08889402,99.359,99.25,0.1]
[1770147831993,10.09986489,99.34,99.308,4.09919439]
[1770147832402,10.09986489,99.33,99.296,4.09919439]
[1770147832723,4.08889402,99.339,99.296,4.09919439]
[1770147832892,4.08889402,99.339,99.29,10.09986489]
[1770147833094,10.09986489,99.31,99.271,4.09919439]
[1770147834003,10.09986489,99.3,99.26,4.3539768]
[1770147834211,10.09986489,99.29,99.26,4.3539768]
[1770147834390,10.14627414,99.29,99.26,4.3539768]
[1770147834590,10.14627414,99.3,99.26,4.3539768]
[1770147835111,4.08889402,99.32,99.261,4.3539768]
[1770147835304,4.08889402,99.349,99.291,4.3539768]
[1770147835494,4.08889402,99.349,99.301,4.3539768]
[1770147835888,4.08889402,99.349,99.31,10.14627414]
[1770147836098,10.14627414,99.36,99.311,4.3539768]
[1770147836298,14.23516816,99.36,99.311,4.3539768]
[1770147836703,4.08889402,99.359,99.311,4.3539768]
[1770147836904,10.14627414,99.35,99.311,4.3539768]
[1770147837114,4.08889402,99.359,99.311,4.3539768]
[1770147837613,10.14627414,99.37,99.321,4.3539768]
[1770147838599,4.08889402,99.369,99.321,4.3539768]
[1770147838804,10.14627414,99.36,99.321,4.3539768]
[1770147839017,4.08889402,99.369,99.321,4.3539768]
[1770147839714,10.14627414,99.36,99.321,4.3539768]
[1770147840099,4.08889402,99.369,99.321,4.3539768]
[1770147840392,4.08889402,99.359,99.31,4.3539768]
[1770147840602,10.14627414,99.35,99.31,4.3539768]
[1770147840811,4.08889402,99.359,99.31,4.3539768]
[1770147841009,4.08889402,99.379,99.331,4.3539768]
[1770147841207,10.14627414,99.35,99.308,4.3539768]
[1770147841505,5.36086188,99.417,99.281,4.3539768]
[1770147841506,10.14627414,99.32,99.281,4.3539768]
[1770147841708,14.23516816,99.33,99.281,4.3539768]
[1770147841910,10.14627414,99.33,99.281,4.3539768]
[1770147842106,4.08889402,99.329,99.281,4.3539768]
[1770147842311,5.36086188,99.367,99.281,4.3539768]
[1770147842312,14.23516816,99.32,99.281,4.3539768]
[1770147843415,10.14627414,99.31,99.281,4.3539768]
[1770147843801,10.14627414,99.3,99.261,4.3539768]
[1770147843993,4.08889402,99.279,99.237,4.3539768]
[1770147845202,4.08889402,99.279,99.24,10.14627414]
[1770147845402,10.14627414,99.29,99.23,0.1]
[1770147845403,4.04800507,99.269,99.25,0.01780909]
[1770147845619,4.04800507,99.269,99.23,0.1]
[1770147845620,4.04800507,99.269,99.231,4.3539768]
[1770147846318,4.00752501,99.259,99.23,0.1]
[1770147847224,3.92777525,99.239,99.189,4.3539768]
[1770147847536,3.92777525,99.239,99.191,4.3539768]
[1770147847919,3.92777525,99.229,99.18,10.14627414]
[1770147848228,10.14627414,99.21,99.174,4.3539768]
[1770147848404,10.14627414,99.19,99.164,7.70664937]
[1770147848722,10.14627414,99.2,99.17,4.4539768]
[1770147848921,10.14627414,99.21,99.17,4.4539768]
[1770147849119,3.92777525,99.215,99.17,4.4539768]
[1770147849314,10.14627414,99.22,99.171,4.3539768]
[1770147849707,10.14627414,99.23,99.181,4.3539768]
[1770147849909,3.92777525,99.239,99.181,4.3539768]
[1770147850109,10.14627414,99.23,99.181,4.3539768]
[1770147850427,6.31266822,99.245,99.191,4.3539768]
[1770147850603,6.31266822,99.245,99.201,4.3539768]
[1770147851010,6.31266822,99.245,99.171,10.08359298]
[1770147851011,1.81266822,99.245,99.23,10.14627414]
[1770147851207,10.14627414,99.28,99.23,14.50025094]
[1770147851522,4.19613528,99.279,99.23,14.50025094]
[1770147852231,10.14627414,99.27,99.23,4.3539768]
[1770147852415,4.19613528,99.269,99.23,4.3539768]
[1770147852724,10.14627414,99.26,99.219,4.3539768]
[1770147852922,4.19613528,99.249,99.207,4.3539768]
[1770147853125,4.19613528,99.239,99.195,4.3539768]
[1770147853423,5.36086188,99.297,99.201,4.3539768]
[1770147853424,4.19613528,99.25,99.201,4.3539768]
[1770147853723,10.14627414,99.26,99.211,4.3539768]
[1770147853902,4.19613528,99.261,99.22,10.14627414]
[1770147854103,28.0,99.313,99.164,7.70664937]
[1770147854104,4.19613528,99.274,99.231,4.3539768]
[1770147854532,4.19613528,99.269,99.231,4.3539768]
[1770147855623,10.14627414,99.26,99.2,4.3539768]
[1770147855820,4.19613528,99.269,99.221,4.3539768]
[1770147856206,4.19613528,99.269,99.23,10.14627414]
[1770147856413,3.54589898,99.269,99.23,14.50025094]
[1770147856613,3.54589898,99.269,99.23,4.3539768]
[1770147856808,10.14627414,99.29,99.24,10.14627414]
[1770147857014,10.14627414,99.29,99.241,4.3539768]
[1770147857427,28.0,99.303,99.228,4.3539768]
[1770147857428,10.14627414,99.27,99.228,4.3539768]
[1770147857610,10.14627414,99.28,99.228,4.3539768]
[1770147857811,10.14627414,99.28,99.231,4.3539768]
[1770147858410,4.19613528,99.269,99.231,4.3539768]
[1770147860337,10.14627414,99.3,99.251,4.3539768]
[1770147860510,4.45045337,99.299,99.251,4.3539768]
[1770147860705,4.45045337,99.299,99.203,25.20067642]
[1770147860913,4.45045337,99.289,99.241,4.33588203]
[1770147861429,10.14627414,99.27,99.241,4.33588203]
[1770147861732,4.45045337,99.279,99.241,4.33588203]
[1770147862136,10.14627414,99.29,99.241,4.33588203]
[1770147862430,4.45045337,99.289,99.251,4.33588203]
[1770147862748,28.0,99.307,99.261,4.33588203]
[1770147862914,4.45045337,99.31,99.261,4.33588203]
[1770147863315,4.45045337,99.309,99.261,4.33588203]
[1770147864216,4.45045337,99.299,99.25,10.14627414]
[1770147864422,4.45045337,99.289,99.248,4.33588203]
[1770147864726,4.45045337,99.289,99.251,4.33588203]
[1770147868839,4.45045337,99.32,99.271,4.33588203]
[1770147869018,4.45045337,99.32,99.281,4.33588203]
[1770147870030,4.45045337,99.313,99.281,4.33588203]
[1770147870735,4.45045337,99.326,99.281,4.33588203]
[1770147871438,4.45045337,99.359,99.301,2.06612158]
[1770147871616,5.2608379,99.382,99.301,2.06612158]
[1770147871617,4.45045337,99.349,99.301,2.06612158]
[1770147872021,4.45045337,99.339,99.291,2.06612158]
[1770147872938,4.45045337,99.339,99.3,10.14627414]
[1770147873920,4.45045337,99.339,99.291,2.06612158]
[1770147874239,4.45045337,99.329,99.278,2.06612158]
[1770147874444,4.45045337,99.319,99.27,10.14627414]
[1770147874624,4.45045337,99.319,99.27,12.21239572]
[1770147874831,4.45045337,99.319,99.271,2.06612158]
[1770147875131,10.14627414,99.3,99.25,10.14627414]
[1770147875322,4.45045337,99.299,99.25,10.14627414]
[1770147875520,4.45045337,99.289,99.236,2.06612158]
[1770147875737,4.45045337,99.289,99.24,10.14627414]
[1770147876128,10.14627414,99.3,99.25,10.14627414]
[1770147876129,4.45045337,99.299,99.25,10.14627414]
[1770147877134,4.45045337,99.289,99.246,2.06612158]
[1770147878117,4.45045337,99.289,99.24,10.14627414]
[1770147878442,4.45045337,99.289,99.172,50.26198706]
[1770147878443,4.45045337,99.269,99.223,2.06612158]
[1770147878648,4.45045337,99.26,99.223,2.06612158]
[1770147879143,14.59672751,99.26,99.223,2.06612158]
[1770147880324,4.45045337,99.269,99.223,2.06612158]
[1770147880542,4.45045337,99.269,99.231,4.33588203]
[1770147880849,4.45045337,99.289,99.24,10.14627414]
[1770147881038,4.45045337,99.289,99.241,4.33588203]
[1770147881644,4.45045337,99.279,99.241,4.33588203]
[1770147882546,10.14627414,99.26,99.211,4.33588203]
[1770147882745,4.45045337,99.259,99.211,4.33588203]
[1770147883155,4.45045337,99.249,99.211,4.33588203]
[1770147885152,4.45045337,99.249,99.22,10.14627414]
[1770147886650,4.45045337,99.289,99.241,4.33588203]
[1770147888150,14.59672751,99.28,99.241,4.33588203]
[1770147888349,4.45045337,99.28,99.241,4.33588203]
[1770147888553,10.14627414,99.28,99.241,4.33588203]
[1770147888754,10.14627414,99.27,99.231,4.33588203]
[1770147889752,28.0,99.307,99.231,4.33588203]
[1770147889934,10.14627414,99.27,99.231,4.33588203]
[1770147890135,10.14627414,99.27,99.194,28.0]
[1770147890136,10.14627414,99.26,99.219,4.33588203]
[1770147890354,28.0,99.307,99.219,4.33588203]
[1770147890355,10.14627414,99.25,99.219,4.33588203]
[1770147890963,5.36086188,99.317,99.22,10.14627414]
[1770147891262,4.17572903,99.397,99.31,10.14627414]
[1770147891464,4.17572903,99.369,99.311,4.05120925]
[1770147891639,4.17572903,99.359,99.32,10.14627414]
[1770147891837,4.17572903,99.359,99.311,4.05120925]
[1770147892066,28.0,99.401,99.273,4.05120925]
[1770147892067,4.17572903,99.349,99.273,4.05120925]
[1770147892246,4.17572903,99.339,99.291,4.05120925]
[1770147893257,4.17572903,99.299,99.261,4.05120925]
[1770147898759,4.17572903,99.299,99.27,10.14442269]
[1770147899357,4.17572903,99.299,99.261,4.05120925]
[1770147899558,14.63586932,99.31,99.261,4.05120925]
[1770147899861,4.49144663,99.309,99.261,4.05120925]
[1770147901163,4.49144663,99.309,99.271,4.08420134]
[1770147901475,5.36086188,99.37,99.25,10.07552557]
[1770147901476,4.49144663,99.349,99.3,10.14442269]
[1770147901650,10.14442269,99.31,99.271,4.08420134]
[1770147901972,10.14442269,99.29,99.251,4.08420134]
[1770147902549,4.49144663,99.359,99.27,10.14442269]
[1770147902865,10.14442269,99.3,99.261,4.08420134]
[1770147903060,14.63586932,99.3,99.261,4.08420134]
[1770147903263,4.49144663,99.299,99.261,4.08420134]
[1770147904762,4.49144663,99.269,99.211,4.08420134]
[1770147904963,10.14442269,99.24,99.211,4.08420134]
[1770147905245,10.14442269,99.25,99.211,4.08420134]
[1770147905442,10.14442269,99.24,99.211,4.08420134]
[1770147905648,10.14442269,99.27,99.221,4.08420134]
[1770147905863,4.49144663,99.269,99.23,10.14442269]
[1770147906064,4.49144663,99.269,99.231,4.08420134]
[1770147906265,4.49144663,99.285,99.25,10.14442269]
[1770147906451,4.49144663,99.285,99.251,4.08420134]
[1770147908255,10.14442269,99.27,99.24,4.08420134]
[1770147908454,4.49144663,99.279,99.24,4.08420134]
[1770147909373,4.49144663,99.259,99.215,4.08420134]
[1770147909675,10.14442269,99.24,99.191,4.08420134]
[1770147909877,10.14442269,99.25,99.201,4.08420134]
[1770147910378,10.14442269,99.23,99.201,4.08420134]
[1770147910675,14.63586932,99.25,99.201,4.08420134]
[1770147910868,4.49144663,99.249,99.201,4.08420134]
[1770147911752,28.0,99.294,99.171,25.20883028]
[1770147911753,14.63586932,99.26,99.211,4.08420134]
[1770147911958,4.49144663,99.259,99.211,4.08420134]
[1770147912359,10.14442269,99.24,99.2,4.08420134]
[1770147912758,10.14442269,99.23,99.181,4.08420134]
[1770147913150,4.49144663,99.239,99.191,4.08420134]
[1770147913676,4.49144663,99.249,99.201,4.08420134]
[1770147914272,4.49144663,99.239,99.201,4.08420134]
[1770147914476,10.14442269,99.23,99.201,4.08420134]
[1770147915179,4.49144663,99.239,99.201,4.08420134]
[1770147915574,10.14442269,99.23,99.201,4.08420134]
[1770147915882,4.49144663,99.249,99.201,4.08420134]
[1770147916075,4.49144663,99.239,99.201,4.08420134]
[1770147916460,10.14442269,99.23,99.201,4.08420134]
[1770147917377,4.49144663,99.239,99.201,4.08420134]
[1770147917761,10.14442269,99.23,99.201,4.08420134]
[1770147917980,4.49144663,99.219,99.184,4.08420134]
[1770147918167,14.63586932,99.23,99.184,4.08420134]
[1770147918359,4.49144663,99.229,99.184,4.08420134]
[1770147918563,10.14442269,99.22,99.184,4.08420134]
[1770147918978,4.49144663,99.229,99.184,4.08420134]
[1770147921870,10.14442269,99.22,99.184,4.08420134]
[1770147922683,4.43217154,99.219,99.184,4.08420134]
[1770147923762,4.43217154,99.219,99.171,4.05332052]
[1770147923963,4.43217154,99.209,99.171,4.05332052]
[1770147925178,4.43217154,99.209,99.181,4.05332052]
[1770147926387,4.43217154,99.229,99.181,4.05332052]
[1770147926569,10.14442269,99.28,99.171,4.05332052]
[1770147926570,10.14442269,99.2,99.171,4.05332052]
[1770147926770,4.43217154,99.199,99.171,4.05332052]
[1770147929762,4.43217154,99.199,99.17,0.1]
[1770147929968,4.43217154,99.179,99.16,0.2]
[1770147930185,10.14442269,99.17,99.16,0.2]
[1770147930599,4.43217154,99.169,99.15,0.1]
[1770147930886,10.14442269,99.16,99.15,0.1]
[1770147931092,4.43217154,99.169,99.15,0.1]
[1770147931395,4.43217154,99.179,99.15,0.1]
[1770147933081,10.14442269,99.17,99.15,0.1]
[1770147934295,4.43217154,99.179,99.15,0.1]
[1770147934678,10.14442269,99.16,99.15,0.1]
[1770147935089,4.43217154,99.169,99.15,0.1]
[1770147936305,4.43217154,99.179,99.15,0.1]
[1770147936477,4.43217154,99.179,99.15,4.15332052]
[1770147937274,4.43217154,99.169,99.15,0.1]
[1770147937475,4.43217154,99.159,99.13,0.1]
[1770147937679,4.43217154,99.149,99.13,0.1]
[1770147941780,4.43217154,99.159,99.13,0.1]
[1770147941980,5.36086188,99.21,99.13,0.1]
[1770147941981,4.43217154,99.179,99.141,4.05332052]